bitfinex-derivatives/quotes_ETHF0:USTF0_20250803
["timestamp","ask_amount","ask_price","bid_price","bid_amount"]
[1754207401721,7.06380953,3454.9,3454.8,1.8111]
[1754207402434,6.20869133,3454.9,3454.8,1.8111]
[1754207404024,3.2078,3454.9,3454.8,1.8111]
[1754207404330,5.86529133,3454.9,3454.8,1.0542]
[1754207404522,5.86529133,3454.9,3454.8,1.8259]
[1754207404927,6.16389133,3454.9,3454.8,1.8259]
[1754207405229,3.4065,3454.9,3454.8,1.8259]
[1754207405435,3.2078,3454.9,3454.8,1.8259]
[1754207406430,3.4065,3454.9,3454.8,1.8259]
[1754207406633,3.7051,3454.9,3454.8,1.8259]
[1754207406932,4.28404,3454.9,3454.8,1.8259]
[1754207407227,4.28494,3454.9,3454.8,1.8259]
[1754207408026,3.706,3454.9,3454.8,1.8259]
[1754207408231,3.4065,3454.9,3454.8,1.8259]
[1754207408632,3.706,3454.9,3454.8,1.8259]
[1754207417941,0.4982,3454.9,3454.8,1.8259]
[1754207421939,0.1987,3454.9,3454.8,1.8259]
[1754207422242,5.66569133,3455.1,3455.0,0.7353]
[1754207422243,5.86439133,3455.1,3455.0,0.7353]
[1754207422536,6.7212024,3455.1,3455.0,1.8259]
[1754207422839,7.0198024,3455.1,3455.0,1.8259]
[1754207423832,6.16299133,3455.1,3455.0,1.8259]
[1754207424432,7.02060175,3455.1,3455.0,1.8259]
[1754207424941,6.72200175,3455.1,3455.0,1.8259]
[1754207425339,5.86439133,3455.1,3455.0,1.8259]
[1754207425643,7.02071765,3455.1,3455.0,1.8259]
[1754207425844,0.57884,3455.5,3455.0,2.40481]
[1754207426044,1.05637506,3455.4,3455.3,0.7353]
[1754207426247,1.35497506,3455.4,3455.3,1.8259]
[1754207426442,1.35587506,3455.4,3455.3,1.8259]
[1754207429741,0.85767506,3455.4,3455.3,1.8259]
[1754207429943,3.4065,3456.0,3455.9,1.8259]
[1754207430142,4.45140134,3456.0,3455.9,1.8259]
[1754207430543,4.25270134,3456.0,3455.9,1.8259]
[1754207430740,0.85826293,3456.0,3455.9,1.8259]
[1754207432947,0.36536293,3456.0,3455.9,1.8259]
[1754207433145,1.03620802,3456.7,3456.6,0.57865]
[1754207433446,3.49409935,3456.7,3456.6,0.7308]
[1754207433635,4.45119935,3456.7,3456.6,0.7308]
[1754207433948,4.75459935,3456.7,3456.6,1.8428]
[1754207434342,3.71839133,3456.7,3456.6,1.8428]
[1754207435948,4.24400802,3456.8,3456.6,1.8428]
[1754207436145,3.2078,3456.8,3456.6,0.7308]
[1754207436446,3.4246,3456.8,3456.7,0.7308]
[1754207436637,4.4683,3456.8,3456.7,1.8428]
[1754207438852,4.4683,3456.8,3456.5,0.3256]
[1754207439056,1.2605,3456.4,3456.3,5.0506]
[1754207441745,0.8166,3456.4,3456.3,5.0506]
[1754207442048,1.2605,3456.4,3456.3,5.0506]
[1754207442553,3.2078,3456.8,3456.3,3.9386]
[1754207442850,0.9571,3456.7,3456.6,1.8428]
[1754207443150,1.2605,3456.7,3456.6,1.8428]
[1754207449157,1.2605,3456.4,3456.3,1.3153]
[1754207449358,1.2605,3456.4,3456.3,1.8428]
[1754207451153,0.9571,3456.4,3456.3,1.8428]
[1754207451658,7.50481133,3456.8,3456.7,1.8428]
[1754207452352,7.50481133,3456.8,3456.7,1.3545]
[1754207452559,7.50481133,3456.8,3456.7,0.2981]
[1754207452857,1.32598,3456.5,3456.4,0.5289]
[1754207453058,1.83918,3456.5,3456.4,0.827]
[1754207453360,4.29707133,3456.5,3456.4,0.827]
[1754207453752,4.29707133,3456.5,3456.4,1.5307]
[1754207454058,4.29707133,3456.5,3456.4,1.8428]
[1754207454356,3.71839133,3456.5,3456.4,1.8428]
[1754207456557,3.71839133,3456.5,3456.4,0.2981]
[1754207456759,0.5132,3456.0,3455.9,0.7168]
[1754207456956,0.5132,3456.0,3455.9,1.3545]
[1754207457264,0.9571,3456.0,3455.9,1.8428]
[1754207457458,1.2605,3456.0,3455.9,1.8428]
[1754207457758,0.9571,3456.0,3455.9,1.8428]
[1754207458160,0.4439,3456.0,3455.9,1.8428]
[1754207458553,0.4439,3456.1,3456.0,0.8139]
[1754207458752,0.4439,3456.1,3456.0,1.8428]
[1754207458963,0.6607,3456.1,3456.0,1.8428]
[1754207459564,0.9571,3456.1,3456.0,1.8428]
[1754207461665,4.1962,3456.4,3456.3,1.6341]
[1754207461867,4.5146,3456.4,3456.3,1.8331]
[1754207462071,1.3068,3456.4,3456.3,1.8331]
[1754207463065,0.57865,3456.6,3456.3,1.28059]
[1754207463272,2.15879651,3456.5,3456.4,1.8331]
[1754207463570,1.3068,3456.5,3456.4,1.8331]
[1754207464470,2.15896808,3456.5,3456.4,1.8331]
[1754207465268,0.85216808,3456.5,3456.4,1.8331]
[1754207465474,1.0,3457.0,3456.9,2.4117]
[1754207467974,1.0,3457.0,3455.7,0.3098]
[1754207467975,0.8453,3455.8,3455.7,0.3098]
[1754207468174,3.76469133,3455.8,3455.7,0.514]
[1754207468368,1.3068,3455.8,3455.7,1.8331]
[1754207469973,3.76469133,3455.8,3455.7,1.34]
[1754207470168,3.76469133,3455.8,3455.7,1.8331]
[1754207471670,3.76469133,3455.8,3455.7,1.34]
[1754207472474,3.76469133,3455.8,3455.7,1.8331]
[1754207472969,3.2078,3456.3,3456.2,0.57872]
[1754207473173,0.4615,3456.5,3455.3,2.45789133]
[1754207473174,0.5269,3456.0,3455.9,4.28426]
[1754207473375,0.9884,3456.0,3455.9,4.48846]
[1754207473766,0.9884,3456.0,3455.9,5.61966]
[1754207475779,1.3068,3456.0,3455.9,5.0409]
[1754207476778,0.9884,3456.0,3455.9,5.0409]
[1754207477277,0.5269,3456.0,3455.9,5.0409]
[1754207478681,0.9884,3456.0,3455.9,5.0409]
[1754207480183,1.3068,3456.0,3455.9,5.0409]
[1754207483878,0.9884,3456.0,3455.9,5.0409]
[1754207484084,0.5269,3456.0,3455.9,5.0409]
[1754207484276,0.5269,3456.2,3456.1,0.7019]
[1754207484482,0.2,3456.3,3456.2,2.11312]
[1754207484690,0.9884,3456.3,3456.2,2.41182]
[1754207485694,1.3068,3456.3,3456.2,2.41182]
[1754207486091,0.9884,3456.3,3456.2,2.41182]
[1754207486289,0.5269,3456.5,3456.4,1.28058]
[1754207486593,0.9884,3456.5,3456.4,1.28058]
[1754207486788,1.3068,3456.5,3456.4,1.8331]
[1754207488285,0.9884,3456.5,3456.4,1.8331]
[1754207488485,3.2078,3456.7,3456.6,1.5233]
[1754207488695,4.1962,3456.7,3456.6,1.8331]
[1754207488894,4.5146,3456.7,3456.6,1.8331]
[1754207489593,4.5146,3456.7,3456.6,0.514]
[1754207489992,4.5146,3456.7,3456.6,1.0413]
[1754207490698,4.5146,3456.7,3456.6,1.8331]
[1754207492200,4.5146,3456.7,3456.6,1.34]
[1754207492403,4.5146,3456.7,3456.6,1.0413]
[1754207492695,4.5146,3456.7,3456.6,0.514]
[1754207492897,1.3169,3456.6,3456.5,0.3119]
[1754207493297,1.3169,3456.6,3456.5,0.8175]
[1754207493796,1.3169,3456.6,3456.5,1.4846]
[1754207493996,1.3169,3456.6,3456.5,1.7892]
[1754207497102,0.5172,3456.4,3456.3,0.3119]
[1754207497296,1.3169,3456.4,3456.3,0.3119]
[1754207497795,1.3169,3456.4,3456.3,0.6142]
[1754207500403,1.3169,3456.4,3456.3,0.8175]
[1754207501300,1.3169,3456.4,3456.3,0.5152]
[1754207501701,1.3169,3456.4,3456.3,0.8175]
[1754207503802,1.3169,3456.4,3456.3,1.4846]
[1754207505606,1.3169,3456.4,3456.3,1.7892]
[1754207506699,0.8335,3456.4,3456.0,0.57875]
[1754207506905,1.3169,3456.1,3456.0,2.36795]
[1754207510709,1.3169,3456.1,3456.0,2.16465]
[1754207511009,1.3169,3456.1,3456.0,2.36795]
[1754207511509,1.3169,3456.1,3456.0,1.7892]
[1754207512012,1.3169,3456.1,3456.0,1.329]
[1754207512198,1.3169,3456.1,3456.0,0.5092]
[1754207512403,1.3169,3456.1,3456.0,0.8211]
[1754207513707,1.3169,3456.1,3456.0,1.0244]
[1754207514808,1.3169,3456.1,3456.0,1.4846]
[1754207516416,1.3169,3456.1,3456.0,1.7892]
[1754207518213,1.3169,3456.1,3456.0,2.36795]
[1754207521411,1.0006,3456.1,3456.0,2.36795]
[1754207522517,3.2078,3456.3,3456.2,2.39832]
[1754207523417,4.06149348,3456.3,3456.2,2.39832]
[1754207525113,0.4487,3456.6,3456.5,0.78427]
[1754207525306,0.4487,3456.6,3456.5,2.39827]
[1754207525307,1.30239119,3456.6,3456.5,2.39827]
[1754207525509,1.51559119,3456.6,3456.5,2.39827]
[1754207527311,1.83649119,3456.6,3456.5,2.39827]
[1754207527514,2.16309119,3456.6,3456.5,2.39827]
[1754207532021,4.62098252,3456.6,3456.5,0.7343]
[1754207532222,4.62098252,3456.6,3456.5,0.5287]
[1754207532523,4.62098252,3456.6,3456.5,0.8258]
[1754207532713,4.62098252,3456.6,3456.5,1.0314]
[1754207532914,4.62098252,3456.6,3456.5,1.5012]
[1754207533111,1.3094,3456.5,3456.4,0.3187]
[1754207533313,2.16309119,3456.5,3456.4,0.3187]
[1754207533616,0.5341,3456.1,3456.0,1.60985]
[1754207533912,1.3094,3456.1,3456.0,2.07965]
[1754207534321,1.3094,3456.1,3456.0,2.39835]
[1754207534720,1.3094,3456.1,3456.0,1.8196]
[1754207543721,0.9828,3456.1,3456.0,1.8196]
[1754207547322,0.5341,3456.4,3456.3,1.1027]
[1754207547527,2.16439462,3456.4,3456.3,2.0796]
[1754207547826,2.16439462,3456.4,3456.3,1.5009]
[1754207548023,2.16439462,3456.4,3456.3,1.8196]
[1754207548234,1.30369462,3456.4,3455.4,3.2078]
[1754207548417,0.5341,3455.8,3455.7,0.734]
[1754207548619,0.5341,3455.8,3455.7,1.8196]
[1754207548927,1.3094,3455.8,3455.7,1.8196]
[1754207550523,0.9828,3455.8,3455.4,3.5049]
[1754207550828,1.3094,3455.6,3455.5,0.8258]
[1754207551019,1.3094,3455.6,3455.5,1.5012]
[1754207551524,1.3094,3455.6,3455.5,0.3187]
[1754207552226,1.11689,3455.8,3455.7,0.7068]
[1754207552428,1.11689,3455.8,3455.7,1.8111]
[1754207552925,1.89539,3455.8,3455.7,1.3304]
[1754207553228,1.89539,3455.8,3455.7,1.0342]
[1754207554926,1.89539,3455.8,3455.7,1.5149]
[1754207555523,2.74951998,3455.8,3455.7,1.5149]
[1754207557331,2.74951998,3455.8,3455.7,1.8111]
[1754207560734,5.20741131,3455.8,3455.7,1.8111]
[1754207564528,1.43444,3455.5,3455.4,0.1976]
[1754207564729,7.56113133,3455.5,3455.4,0.8212]
[1754207564933,7.56113133,3455.5,3455.4,1.8111]
[1754207565632,7.56113133,3455.5,3455.4,0.7106]
[1754207565835,7.56113133,3455.5,3455.2,0.8043]
[1754207566138,1.11697,3455.3,3455.2,0.8043]
[1754207566435,1.89547,3455.3,3455.2,0.8043]
[1754207566837,1.89547,3455.3,3455.2,1.1043]
[1754207567029,1.89547,3455.3,3455.2,1.3019]
[1754207568639,1.89547,3455.3,3455.2,0.8212]
[1754207568845,1.89547,3455.3,3455.2,0.3]
[1754207569339,1.89547,3455.3,3455.2,0.6236]
[1754207569632,1.89547,3455.3,3455.2,1.0342]
[1754207569836,1.89547,3455.3,3455.2,1.5149]
[1754207570339,1.89547,3455.3,3455.2,1.8111]
[1754207571341,1.3166,3455.3,3455.2,1.8111]
[1754207577542,6.24453133,3455.5,3455.4,1.8111]
[1754207577543,3.2078,3455.5,3455.4,1.8111]
[1754207577748,2.8787,3455.5,3455.4,1.8111]
[1754207577934,8.4688,3455.9,3455.8,1.19559]
[1754207578252,9.32001251,3455.9,3455.8,1.94809]
[1754207578637,8.4688,3455.9,3455.8,1.94809]
[1754207580038,9.4679,3455.9,3455.8,1.3693]
[1754207580238,9.7854,3455.9,3455.8,1.3693]
[1754207580736,9.4679,3455.9,3455.8,1.3693]
[1754207582949,4.2069,3455.9,3455.8,1.3693]
[1754207585851,0.9991,3455.9,3455.8,1.3693]
[1754207589553,1.317,3455.9,3455.8,1.3693]
[1754207590057,1.5067,3455.9,3455.8,1.3693]
[1754207590754,1.317,3455.9,3455.8,1.3693]
[1754207591055,0.9991,3455.9,3455.8,1.3693]
[1754207594458,1.317,3455.9,3455.8,1.3693]
[1754207596052,1.5067,3455.9,3455.8,1.3693]
[1754207596954,0.57883,3455.6,3454.8,3.2078]
[1754207597156,0.4493,3455.4,3455.2,0.57889]
[1754207597360,0.4493,3455.4,3455.3,1.3841]
[1754207597361,0.7566,3455.4,3455.3,1.3841]
[1754207598256,0.9673,3455.4,3455.3,1.3841]
[1754207598753,1.4749,3455.4,3455.3,1.3841]
[1754207599962,1.6925,3455.4,3455.3,1.3841]
[1754207600362,0.7356,3454.9,3454.8,3.6238]
[1754207600556,4.15039133,3454.9,3454.8,4.2559]
[1754207601064,4.15039133,3454.9,3454.8,4.3851]
[1754207603862,4.15039133,3454.9,3454.8,3.7268]
[1754207604064,4.15039133,3454.9,3454.8,0.3133]
[1754207604365,1.6925,3454.7,3454.6,1.0481]
[1754207605660,1.6925,3454.7,3454.6,0.5291]
[1754207605854,1.6925,3454.5,3454.4,0.5291]
[1754207606061,1.6925,3454.5,3454.4,0.8424]
[1754207606260,1.6925,3454.5,3454.4,1.0481]
[1754207607063,1.6925,3454.5,3454.4,1.1773]
[1754207608171,1.6925,3454.5,3454.4,1.3841]
[1754207608673,0.9673,3454.5,3454.4,1.3841]
[1754207609174,1.4749,3454.5,3454.4,1.3841]
[1754207609670,4.30477,3454.8,3454.7,0.6228]
[1754207609867,4.2334,3454.8,3454.7,1.3841]
[1754207610068,4.451,3454.8,3454.7,1.3841]
[1754207610371,4.9003,3454.8,3454.7,1.3841]
[1754207614880,4.9003,3454.8,3454.7,1.1773]
[1754207615284,4.9003,3454.8,3454.7,1.0481]
[1754207615880,1.6925,3454.8,3454.7,1.0481]
[1754207616582,1.6925,3454.8,3454.5,0.1312]
[1754207616876,1.3712,3454.2,3454.1,1.45096]
[1754207617070,1.6713,3454.2,3454.1,1.66086]
[1754207617271,1.6713,3454.2,3454.1,1.4084]
[1754207622079,1.6713,3454.2,3454.1,1.1985]
[1754207622379,1.6713,3454.2,3454.1,1.0673]
[1754207622580,1.6713,3454.2,3454.1,1.1985]
[1754207623289,1.6713,3454.2,3454.1,1.4084]
[1754207623474,1.08259,3454.6,3454.5,0.217]
[1754207623777,2.25029,3454.6,3454.5,1.4084]
[1754207624479,2.25029,3454.6,3454.5,1.1985]
[1754207624872,1.6713,3454.6,3454.5,1.1985]
[1754207626178,1.6713,3454.6,3454.5,0.3266]
[1754207628183,0.7165,3454.4,3454.3,1.0673]
[1754207628375,4.12919133,3454.4,3454.3,1.0673]
[1754207628575,4.12919133,3454.4,3454.3,1.1985]
[1754207629978,1.6713,3454.4,3454.3,1.4084]
[1754207630278,1.4803,3454.4,3454.3,1.4084]
[1754207630479,0.981,3454.4,3454.3,1.4084]
[1754207631279,2.45789133,3454.6,3454.4,0.4501]
[1754207631480,0.3044,3454.7,3454.6,1.4084]
[1754207631675,1.4721,3454.7,3454.6,1.4084]
[1754207631877,2.52283935,3454.7,3454.6,1.4084]
[1754207632571,2.52283935,3454.7,3454.6,1.0673]
[1754207632772,0.981,3454.2,3454.1,1.66086]
[1754207632977,0.981,3454.2,3454.1,1.98746]
[1754207633286,0.7681,3454.2,3454.1,1.98746]
[1754207635876,0.3044,3454.2,3454.1,1.98746]
[1754207636374,0.7681,3454.2,3454.1,1.98746]
[1754207636982,0.3044,3454.2,3454.1,1.98746]
[1754207638489,0.7681,3454.2,3454.1,1.98746]
[1754207638888,0.981,3454.2,3454.1,1.98746]
[1754207640389,2.45789133,3454.8,3454.6,0.57898]
[1754207640580,0.4637,3454.9,3454.6,1.98738]
[1754207640890,4.1888,3455.1,3455.0,1.98732]
[1754207641187,5.73171971,3455.1,3455.0,1.98732]
[1754207641380,4.8791,3455.1,3455.0,1.98732]
[1754207641582,4.8791,3455.1,3455.0,1.4084]
[1754207641779,7.33699133,3455.1,3455.0,1.4084]
[1754207642993,0.465,3455.4,3455.1,0.5789]
[1754207643191,0.9833,3455.4,3455.3,1.372]
[1754207643392,4.14699133,3455.4,3455.3,1.0353]
[1754207643690,4.99864257,3455.4,3455.3,1.0353]
[1754207644389,4.14699133,3455.4,3455.3,1.0353]
[1754207645189,4.14699133,3455.4,3455.3,1.372]
[1754207646389,2.76819133,3455.4,3455.3,1.372]
[1754207646585,3.44119133,3455.4,3455.3,1.372]
[1754207646787,3.74939133,3455.4,3455.3,1.372]
[1754207646983,3.93919133,3455.4,3455.3,1.372]
[1754207647186,3.44119133,3455.4,3455.3,1.372]
[1754207647393,2.76819133,3455.4,3455.3,1.372]
[1754207648087,0.3103,3455.4,3455.3,1.372]
[1754207648284,3.9831,3455.6,3455.5,1.372]
[1754207648889,4.1911,3455.6,3455.5,1.372]
[1754207652093,0.9833,3455.6,3455.5,1.372]
[1754207653091,1.6891,3455.6,3455.5,1.372]
[1754207657388,0.9833,3455.6,3455.5,1.372]
[1754207662791,0.9833,3455.6,3455.5,4.5798]
[1754207663098,0.3103,3455.6,3455.5,4.5798]
[1754207663400,3.44119133,3455.7,3455.6,1.95082]
[1754207663899,3.74939133,3455.7,3455.6,1.95082]
[1754207664199,3.93919133,3455.7,3455.6,1.95082]
[1754207664497,0.208,3455.6,3453.8,3.2078]
[1754207664793,2.45789133,3454.5,3454.4,1.31342]
[1754207664998,2.45789133,3454.5,3454.4,2.08932]
[1754207666501,2.45789133,3454.5,3454.4,2.38732]
[1754207668192,5.66569133,3454.8,3454.5,1.0739]
[1754207668401,5.66569133,3454.8,3454.7,1.8083]
[1754207669796,5.66569133,3454.8,3453.6,0.87715]
[1754207669996,5.66569133,3453.9,3453.8,1.8083]
[1754207670999,5.66569133,3453.9,3453.8,0.298]
[1754207671195,5.66569133,3453.9,3453.8,0.6255]
[1754207671602,5.67549133,3453.9,3453.8,0.6255]
[1754207672296,0.008,3453.6,3453.5,1.4862]
[1754207672599,2.46769133,3453.6,3453.5,1.0378]
[1754207672905,2.46889133,3453.6,3453.5,0.6128]
[1754207673198,0.57917,3453.5,3453.0,4.10215]
[1754207673399,0.0085,3453.2,3453.1,1.5286]
[1754207673793,0.0085,3453.2,3453.1,1.8263]
[1754207673794,0.0018,3453.2,3453.1,1.8263]
[1754207677903,0.0052,3453.4,3453.3,0.7227]
[1754207678204,0.007,3453.4,3453.3,1.8263]
[1754207680511,0.0098,3453.4,3453.3,1.8263]
[1754207684910,3.2078,3453.5,3453.4,1.30189]
[1754207685106,0.0037,3453.8,3453.7,1.10293]
[1754207685415,0.0037,3453.8,3453.7,2.40543]
[1754207686709,3.2078,3453.9,3453.7,2.40543]
[1754207686912,3.2078,3453.9,3453.8,1.3112]
[1754207687107,3.2078,3453.9,3453.8,1.8263]
[1754207688016,0.0098,3454.0,3453.9,1.8263]
[1754207688216,2.46769133,3454.0,3453.9,1.8263]
[1754207691926,3.2078,3454.1,3454.0,1.1036]
[1754207692131,0.0037,3454.6,3454.5,1.8263]
[1754207692524,0.0098,3454.6,3454.5,1.8263]
[1754207698735,2.45789133,3454.7,3454.5,2.4053]
[1754207699032,2.45969133,3454.7,3454.6,1.8263]
[1754207699233,2.46769133,3454.7,3454.6,1.8263]
[1754207701636,0.0064,3454.2,3454.1,1.61076]
[1754207701833,0.0093,3454.2,3454.1,1.61076]
[1754207702133,0.0093,3454.2,3454.1,1.92446]
[1754207702337,0.0093,3454.2,3454.1,0.6123]
[1754207702532,0.58014,3454.3,3454.1,0.6123]
[1754207702533,0.0035,3454.3,3454.2,1.7984]
[1754207702738,0.0093,3454.3,3454.2,1.7984]
[1754207705035,0.0093,3454.3,3454.2,1.3454]
[1754207706539,0.0093,3454.3,3454.2,1.7984]
[1754207709836,0.0104,3454.3,3454.2,1.3454]
[1754207710433,0.85046915,3454.3,3452.9,1.0653]
[1754207710632,2.45959133,3453.5,3453.4,1.7984]
[1754207710834,2.45789133,3453.5,3453.4,1.7984]
[1754207712329,2.45959133,3453.5,3453.4,1.7984]
[1754207712630,2.46079133,3453.5,3453.4,1.7984]
[1754207714541,2.45959133,3453.5,3453.4,1.7984]
[1754207715340,0.0012,3453.7,3453.4,1.31228]
[1754207715541,0.0017,3453.6,3453.5,1.7984]
[1754207717742,2.45959133,3453.8,3453.7,1.7984]
[1754207719038,0.0017,3453.8,3453.7,1.7984]
[1754207719432,0.0047,3453.8,3453.7,1.7984]
[1754207719937,0.0035,3453.8,3453.7,1.7984]
[1754207721340,3.2078,3453.9,3453.8,1.31222]
[1754207721646,3.2078,3453.9,3453.8,2.37752]
[1754207723440,3.2078,3453.9,3453.8,1.3454]
[1754207723740,3.2171,3453.9,3453.8,1.7984]
[1754207724137,3.2113,3453.9,3453.8,1.7984]
[1754207724338,3.2095,3453.9,3453.8,1.7984]
[1754207726242,3.2078,3453.9,3453.8,1.7984]
[1754207730348,3.2095,3453.9,3453.8,1.7984]
[1754207731246,3.2113,3453.9,3453.8,1.7984]
[1754207731453,3.2171,3453.9,3453.8,1.7984]
[1754207732649,3.2159,3453.9,3453.8,1.7984]
[1754207732853,3.2159,3453.9,3453.8,2.37752]
[1754207733148,3.2159,3453.9,3453.8,1.7984]
[1754207735252,3.795,3453.9,3453.8,1.7984]
[1754207735446,3.795,3453.9,3453.8,1.3454]
[1754207735647,3.2159,3453.9,3453.8,1.3454]
[1754207735845,3.2159,3453.9,3453.8,1.8267]
[1754207736953,3.2173,3453.9,3453.8,1.8267]
[1754207741853,3.2078,3453.9,3453.8,1.8267]
[1754207746665,3.7869,3453.9,3453.8,1.3454]
[1754207747558,3.7869,3453.9,3453.8,0.3137]
[1754207747762,4.63932595,3453.9,3453.8,0.3137]
[1754207748163,4.63932595,3453.9,3453.8,0.6273]
[1754207748667,0.57914,3453.7,3453.5,1.3364]
[1754207748862,3.03703133,3453.7,3453.6,0.3136]
[1754207749057,2.45789133,3453.7,3453.6,0.7949]
[1754207749363,2.45789133,3453.7,3453.6,1.0923]
[1754207749567,2.45789133,3453.7,3453.6,1.8316]
[1754207750668,3.31036132,3453.7,3453.6,1.8316]
[1754207753067,3.31036132,3453.7,3453.6,0.2974]
[1754207753372,3.31036132,3453.7,3453.1,1.0367]
[1754207753571,2.48385802,3454.2,3453.0,0.89285]
[1754207753572,5.66569133,3453.4,3453.2,1.1525]
[1754207753871,5.66569133,3453.4,3453.3,1.8316]
[1754207759470,5.66569133,3453.4,3453.3,2.4108]
[1754207760371,3.2078,3453.4,3453.3,2.4108]
[1754207762474,2.45789133,3453.8,3453.7,0.4256]
[1754207762778,3.31177678,3453.8,3453.7,1.8488]
[1754207763777,3.31177678,3453.8,3453.7,1.3672]
[1754207763981,3.31177678,3453.8,3453.7,0.3031]
[1754207764281,3.31177678,3453.8,3453.7,0.6127]
[1754207765376,0.85388545,3453.8,3453.7,1.8488]
[1754207767980,3.2078,3453.9,3453.7,2.42793]
[1754207768175,3.2078,3453.9,3453.8,1.8488]
[1754207768384,4.06154372,3453.9,3453.8,1.8488]
[1754207771683,3.2078,3453.9,3453.8,1.8488]
[1754207771876,4.06171038,3453.9,3453.8,0.3031]
[1754207772481,0.57912,3453.8,3453.5,1.0641]
[1754207772680,0.57912,3453.8,3453.6,0.3031]
[1754207772872,0.57912,3453.8,3453.7,0.6127]
[1754207773074,1.43314455,3453.8,3453.7,0.6127]
[1754207773279,1.43314455,3453.8,3453.7,1.8488]
[1754207773479,1.43314455,3453.8,3453.7,1.5392]
[1754207773680,1.43314455,3453.8,3453.7,1.8488]
[1754207779095,0.57917,3453.5,3453.3,0.7912]
[1754207779285,3.78697,3453.5,3453.4,1.8488]
[1754207780786,3.2078,3453.5,3453.4,1.8488]
[1754207782491,3.2078,3453.5,3453.1,0.57923]
[1754207782693,3.2078,3453.5,3453.4,0.6127]
[1754207782887,3.2078,3453.5,3453.4,0.8295]
[1754207783085,3.2078,3453.5,3453.4,1.8488]
[1754207783686,4.06293234,3453.5,3453.4,1.8488]
[1754207783880,4.06293234,3453.5,3453.4,0.5199]
[1754207784084,0.57922,3453.2,3453.1,1.8488]
[1754207784289,2.45789133,3453.2,3453.1,1.8488]
[1754207784688,3.31309292,3453.2,3453.1,1.8488]
[1754207787697,3.31309292,3453.2,3453.1,1.3304]
[1754207787897,3.31309292,3453.2,3453.1,1.8488]
[1754207789101,2.45789133,3453.2,3453.1,1.8488]
[1754207790101,2.45789133,3453.2,3453.1,1.3672]
[1754207790305,2.45789133,3453.2,3453.1,1.8488]
[1754207793602,2.45789133,3453.2,3453.1,2.42804]
[1754207793801,3.2078,3453.5,3453.4,1.8277]
[1754207794006,4.06208982,3453.5,3453.4,1.8277]
[1754207796508,3.2078,3453.5,3453.4,1.8277]
[1754207796705,2.8784,3453.5,3453.4,1.8277]
[1754207796912,3.2078,3453.9,3453.8,1.8277]
[1754207797208,4.06197329,3453.9,3453.8,1.8277]
[1754207797404,3.2078,3453.9,3453.8,1.8277]
[1754207797604,4.06195198,3453.9,3453.8,1.8277]
[1754207798006,4.86395198,3453.9,3453.8,1.8277]
[1754207798914,5.38155198,3453.9,3453.8,1.8277]
[1754207802613,5.38155198,3453.9,3453.8,1.3621]
[1754207802804,5.38155198,3453.9,3453.8,1.8277]
[1754207804908,4.06195198,3453.9,3453.8,1.8277]
[1754207805415,4.55585198,3453.9,3453.8,1.8277]
[1754207805611,4.86395198,3453.9,3453.8,1.8277]
[1754207807115,4.0098,3453.9,3453.8,1.8277]
[1754207807308,4.2095,3453.9,3453.8,1.8277]
[1754207807514,4.5274,3453.9,3453.8,1.8277]
[1754207808813,1.3196,3453.9,3453.8,1.8277]
[1754207819522,3.77749133,3453.9,3453.8,0.3205]
[1754207819813,3.2078,3454.0,3453.8,2.40682]
[1754207820018,3.2078,3454.4,3454.3,0.726]
[1754207820213,3.2078,3454.4,3454.3,1.8277]
[1754207820821,3.2078,3454.4,3454.3,2.40673]
[1754207821122,3.2078,3455.0,3454.9,1.8277]
[1754207821321,4.5545517,3455.0,3454.9,1.8277]
[1754207821520,4.0196,3455.0,3454.9,1.8277]
[1754207821914,4.5464,3455.0,3454.9,1.8277]
[1754207822313,4.0196,3455.0,3454.9,1.8277]
[1754207822516,3.2078,3455.0,3454.9,1.8277]
[1754207822716,0.4453,3455.0,3454.9,1.8277]
[1754207822919,0.7709,3455.0,3454.9,1.8277]
[1754207823427,1.0799,3455.0,3454.9,1.8277]
[1754207823820,0.3256,3455.0,3454.9,1.8277]
[1754207824716,0.7709,3455.0,3454.9,1.8277]
[1754207826021,3.2078,3455.4,3455.0,0.57892]
[1754207826223,1.057,3455.3,3455.2,0.724]
[1754207826416,1.057,3455.3,3455.2,1.801]
[1754207826614,1.3826,3455.3,3455.2,1.801]
[1754207826920,1.5023,3455.3,3455.2,1.801]
[1754207829321,0.3256,3455.3,3455.2,1.801]
[1754207829629,0.7709,3455.6,3455.5,1.30283]
[1754207830321,0.7709,3455.6,3455.5,2.37983]
[1754207830520,1.296,3455.6,3455.5,2.37983]
[1754207830911,1.5023,3455.6,3455.5,2.37983]
[1754207831729,1.5023,3455.6,3455.5,1.801]
[1754207832526,1.8279,3455.6,3455.5,1.801]
[1754207835428,1.8279,3455.6,3455.5,0.3023]
[1754207835930,1.8279,3455.6,3455.5,0.6034]
[1754207837537,1.8279,3455.6,3455.5,0.8149]
[1754207838941,2.40672,3455.6,3455.5,0.8149]
[1754207839341,1.0799,3455.5,3455.1,1.801]
[1754207839543,0.748,3455.2,3455.1,1.0251]
[1754207839741,1.8279,3455.2,3455.1,1.0251]
[1754207840238,1.8279,3455.2,3455.1,1.801]
[1754207842742,5.0357,3455.2,3455.1,1.801]
[1754207843041,0.748,3455.1,3455.0,0.4272]
[1754207843246,0.748,3455.1,3455.0,1.5042]
[1754207843247,1.8279,3455.1,3455.0,1.5042]
[1754207843545,1.8279,3455.1,3455.0,1.801]
[1754207846256,1.5023,3455.1,3455.0,1.801]